bitfinex-derivatives/quotes_ETHF0:USTF0_20250831
["timestamp","ask_amount","ask_price","bid_price","bid_amount"]
[1756649691981,0.5128,4460.5,4460.3,0.232]
[1756649692682,0.5128,4460.4,4460.3,0.232]
[1756649693571,0.5128,4460.3,4460.2,0.232]
[1756649693778,0.5128,4460.3,4460.1,0.232]
[1756649693971,0.3007,4460.2,4460.1,0.232]
[1756649694174,0.5128,4460.2,4460.1,0.232]
[1756649694687,0.3007,4460.1,4459.8,3.2078]
[1756649694879,0.3007,4461.0,4459.8,3.2078]
[1756649695076,0.5128,4459.9,4459.8,3.2078]
[1756649695382,0.5128,4459.9,4459.8,3.4398]
[1756649695581,0.5128,4459.9,4459.8,3.2078]
[1756649695882,0.5128,4459.9,4459.8,3.4398]
[1756649696190,0.5128,4459.9,4459.8,3.2078]
[1756649696381,0.5128,4459.9,4459.8,3.4398]
[1756649697384,0.5128,4459.9,4459.8,0.232]
[1756649698680,0.5128,4459.9,4459.3,3.2078]
[1756649698881,0.3007,4459.9,4459.4,0.232]
[1756649699082,0.5128,4459.9,4459.4,0.232]
[1756649700087,0.5128,4459.9,4459.7,1.38224721]
[1756649700286,0.5128,4459.9,4459.8,0.232]
[1756649700585,0.2121,4459.9,4459.4,1.38224721]
[1756649700886,1.38224721,4460.5,4459.3,3.2078]
[1756649700887,0.2121,4459.8,4459.3,3.2078]
[1756649701089,3.2078,4460.7,4459.3,3.2078]
[1756649701090,0.5128,4459.4,4459.3,3.2078]
[1756649701274,0.5128,4459.4,4459.3,3.4398]
[1756649701585,0.5128,4459.4,4459.3,3.2078]
[1756649701980,0.3007,4459.3,4459.0,0.232]
[1756649702184,0.2121,4459.1,4459.0,0.232]
[1756649702385,0.5128,4459.1,4459.0,0.232]
[1756649703286,0.5128,4459.1,4458.7,3.2078]
[1756649703480,1.38224721,4459.6,4458.8,0.232]
[1756649703481,0.2121,4458.9,4458.8,0.232]
[1756649703682,0.5128,4458.9,4458.8,0.232]
[1756649703883,0.89504721,4459.6,4458.8,0.232]
[1756649704188,0.2121,4458.9,4458.7,3.2078]
[1756649705083,0.2121,4458.9,4458.7,3.531]
[1756649705282,0.2121,4458.9,4458.7,3.2078]
[1756649705895,0.2121,4458.9,4457.3,7.98404279]
[1756649705896,0.2121,4458.8,4458.1,3.2078]
[1756649706086,0.5128,4458.2,4458.1,3.4127]
[1756649706288,0.5128,4458.2,4458.1,3.2078]
[1756649707489,0.5128,4458.2,4458.1,3.7359]
[1756649708490,0.5128,4458.2,4458.1,3.4127]
[1756649709289,0.5128,4458.2,4458.1,3.7288]
[1756649716087,0.314,4458.7,4458.2,0.3161]
[1756649716296,3.2078,4459.2,4459.1,0.2029]
[1756649716594,3.4252,4459.2,4459.1,0.519]
[1756649717390,3.7392,4459.2,4459.1,0.519]
[1756649719999,3.4252,4459.2,4458.2,0.3161]
[1756649720200,0.314,4459.1,4458.2,0.3161]
[1756649720392,0.5314,4459.1,4459.0,0.519]
[1756649720697,3.2078,4459.2,4459.1,0.519]
[1756649720900,3.7392,4459.2,4459.1,0.519]
[1756649721489,3.2078,4459.2,4459.1,0.519]
[1756649722097,3.4252,4459.2,4459.1,0.519]
[1756649722303,3.7392,4459.2,4459.1,0.519]
[1756649722594,3.2078,4459.2,4459.1,0.519]
[1756649722799,3.7392,4459.2,4459.1,0.519]
[1756649723200,3.2078,4459.2,4459.1,0.519]
[1756649724204,3.7392,4459.7,4459.6,0.2029]
[1756649724498,3.7392,4459.7,4459.6,0.519]
[1756649724700,3.4252,4459.7,4459.6,0.519]
[1756649724900,0.314,4459.6,4458.8,0.3161]
[1756649725090,0.2174,4458.9,4458.8,0.519]
[1756649725292,0.314,4459.6,4458.9,0.3161]
[1756649725490,0.5314,4459.0,4458.9,0.519]
[1756649725700,3.2078,4459.7,4458.9,0.519]
[1756649725902,0.5314,4459.6,4459.5,0.2029]
[1756649726101,0.5314,4459.6,4459.5,0.519]
[1756649727897,0.5314,4459.6,4459.5,0.2029]
[1756649728803,0.7624,4459.6,4459.5,0.519]
[1756649729000,0.5314,4459.6,4459.5,0.519]
[1756649729402,0.5314,4459.6,4459.5,0.2029]
[1756649730107,0.5314,4459.6,4459.5,0.519]
[1756649730605,0.5314,4459.6,4459.5,0.2029]
[1756649731304,3.2078,4459.7,4459.5,0.519]
[1756649731507,3.2078,4459.7,4459.6,0.519]
[1756649732204,3.4252,4459.7,4459.6,0.519]
[1756649732604,3.2078,4459.7,4459.6,0.519]
[1756649732908,3.7392,4459.7,4459.6,0.519]
[1756649733102,3.7392,4459.7,4459.6,0.2029]
[1756649733306,3.7392,4459.7,4459.3,0.3161]
[1756649733508,0.5314,4459.6,4459.5,0.2029]
[1756649733809,0.5314,4459.6,4459.5,0.519]
[1756649734906,0.5314,4459.6,4459.5,0.2029]
[1756649735403,0.5314,4459.6,4459.5,0.519]
[1756649737908,0.5314,4459.6,4459.1,1.3824896]
[1756649738112,0.2068,4459.3,4459.2,0.5277]
[1756649738313,0.5026,4459.3,4459.2,0.5277]
[1756649739108,3.2078,4459.7,4459.2,0.2176]
[1756649739413,0.5026,4459.6,4459.5,0.5277]
[1756649739916,0.2068,4459.6,4459.5,0.5277]
[1756649740113,3.2078,4459.7,4459.5,0.2176]
[1756649740314,3.2078,4459.7,4459.6,0.5277]
[1756649740607,3.7104,4459.7,4459.6,0.3101]
[1756649740812,0.5026,4459.1,4459.0,2.0331896]
[1756649741220,0.5026,4459.1,4459.0,0.5277]
[1756649741914,0.5026,4458.3,4458.2,0.5277]
[1756649742115,0.2958,4458.2,4457.6,3.5179]
[1756649742308,0.5026,4457.7,4457.6,3.7355]
[1756649742512,0.231,4458.4,4457.7,0.3101]
[1756649742714,0.2068,4458.0,4457.9,0.2176]
[1756649743215,0.5026,4458.0,4457.9,0.2176]
[1756649745113,0.5026,4458.0,4457.5,4.5902896]
[1756649745320,0.2068,4457.7,4457.5,4.5902896]
[1756649745619,0.5026,4457.6,4457.5,5.1179896]
[1756649746518,0.5026,4457.6,4457.5,1.9101896]
[1756649747021,0.5026,4457.6,4457.5,0.5277]
[1756649747315,0.5026,4457.6,4457.0,3.5179]
[1756649747614,0.2068,4457.3,4457.2,0.4486]
[1756649747917,0.5026,4457.3,4457.2,0.7587]
[1756649748120,0.5026,4457.3,4457.2,0.5277]
[1756649749514,0.2068,4457.3,4457.2,0.5277]
[1756649749715,0.2958,4457.9,4457.3,0.3101]
[1756649749906,0.5026,4457.9,4457.8,0.5277]
[1756649750314,0.2068,4457.9,4457.8,0.5277]
[1756649750507,3.2078,4458.9,4458.2,0.3101]
[1756649750714,3.2078,4458.9,4458.8,0.5277]
[1756649750921,3.4146,4458.9,4458.8,0.5277]
[1756649751720,3.7104,4458.9,4458.8,0.5277]
[1756649753016,3.4146,4458.9,4458.2,3.2078]
[1756649753322,0.5026,4458.3,4458.2,3.4254]
[1756649753521,0.5026,4458.3,4458.2,3.7355]
[1756649754417,0.5026,4458.3,4458.2,0.3101]
[1756649754721,0.5026,4458.3,4458.2,0.5277]
[1756649759027,0.5026,4458.3,4458.2,0.2176]
[1756649759519,0.5026,4458.2,4458.1,3.2078]
[1756649759921,0.5026,4458.2,4458.1,3.4254]
[1756649760125,0.5026,4458.2,4458.1,3.7355]
[1756649761417,0.5026,4458.2,4458.1,3.2078]
[1756649762323,0.2068,4458.2,4458.0,3.2078]
[1756649762530,0.5026,4457.6,4457.5,3.7355]
[1756649762731,0.2068,4457.6,4457.5,3.9655]
[1756649762917,0.2958,4457.9,4457.6,0.3101]
[1756649763123,0.5026,4457.9,4457.8,0.5277]
[1756649764132,0.5026,4457.9,4457.6,0.23]
[1756649764528,0.2068,4457.9,4457.6,0.5401]
[1756649764830,0.5026,4457.6,4457.5,3.4378]
[1756649765025,0.5026,4457.6,4457.5,3.6554]
[1756649765225,0.5026,4457.6,4457.5,3.9655]
[1756649769436,0.2956,4458.8,4457.6,0.3042]
[1756649769634,0.499,4458.6,4458.0,3.2078]
[1756649769937,0.702,4458.7,4458.6,0.5166]
[1756649770137,0.702,4458.7,4458.6,0.2124]
[1756649770339,0.499,4458.7,4458.6,0.2124]
[1756649770539,0.499,4458.7,4458.6,0.5166]
[1756649772041,0.499,4458.7,4458.2,0.3042]
[1756649772238,0.2034,4458.1,4458.0,3.6502]
[1756649772733,0.499,4458.1,4458.0,3.6502]
[1756649772938,0.499,4458.1,4458.0,3.4202]
[1756649773140,0.499,4458.1,4457.7,0.5342]
[1756649773330,1.38334755,4458.4,4457.7,0.5166]
[1756649773331,0.499,4457.8,4457.7,0.5166]
[1756649773537,0.499,4457.6,4457.5,3.2078]
[1756649773841,0.499,4457.0,4456.9,3.4202]
[1756649774141,0.499,4457.0,4456.9,3.9544]
[1756649774738,0.499,4457.0,4456.9,3.4202]
[1756649775440,0.499,4457.0,4456.9,3.2078]
[1756649775640,1.38334755,4457.2,4456.4,0.23]
[1756649775845,0.2034,4456.5,4456.4,0.7466]
[1756649776544,0.2956,4456.7,4456.4,0.4424]
[1756649776745,0.2956,4456.7,4456.6,0.2124]
[1756649776945,0.2956,4456.7,4456.6,0.5166]
[1756649777247,0.499,4456.7,4456.6,0.2124]
[1756649777448,0.499,4456.7,4456.6,0.5166]
[1756649778741,3.2078,4457.3,4456.1,3.2078]
[1756649778742,0.2034,4456.4,4456.3,0.5166]
[1756649780248,0.38584957,4456.4,4456.3,0.5166]
[1756649780452,0.68144957,4456.4,4456.3,0.5166]
[1756649781341,0.2956,4457.2,4456.4,0.3042]
[1756649781549,0.3857759,4457.1,4457.0,0.5166]
[1756649782042,0.6813759,4457.1,4457.0,0.5166]
[1756649783251,0.68137895,4457.1,4457.0,0.5166]
[1756649783546,0.68137895,4457.1,4456.5,0.5342]
[1756649783745,0.499,4456.6,4456.5,0.7466]
[1756649783941,0.38577895,4456.6,4456.1,3.512]
[1756649784243,0.499,4456.3,4456.2,0.5166]
[1756649784837,0.2956,4456.2,4455.8,0.3042]
[1756649785038,0.499,4455.7,4455.6,0.5166]
[1756649785244,0.68135157,4455.7,4455.6,0.5166]
[1756649785946,0.499,4455.7,4455.6,0.5166]
[1756649786146,0.6813202,4455.7,4455.6,0.5166]
[1756649786339,0.6813202,4455.7,4455.5,3.2078]
[1756649786544,0.1121,4455.9,4455.5,3.2078]
[1756649786545,0.2956,4455.6,4455.5,3.2078]
[1756649786745,0.499,4455.6,4455.5,3.4202]
[1756649786946,0.499,4455.6,4455.5,3.7244]
[1756649787347,0.1121,4455.9,4455.8,0.2124]
[1756649787549,0.29434947,4455.9,4455.8,0.5166]
[1756649788047,0.49774947,4455.9,4455.8,0.5166]
[1756649788248,0.79334947,4455.9,4455.8,0.5166]
[1756649789551,0.29434947,4455.9,4455.8,0.5166]
[1756649790948,0.49774947,4455.9,4455.8,0.5166]
[1756649791350,0.29434947,4455.9,4455.8,4.55450606]
[1756649791550,3.2078,4456.8,4455.9,0.151]
[1756649791757,3.2078,4456.8,4456.7,0.2124]
[1756649791954,3.7068,4456.8,4456.7,0.3634]
[1756649792345,3.7068,4456.8,4456.1,3.2078]
[1756649792551,0.2956,4456.7,4456.3,0.4424]
[1756649793159,3.2078,4456.8,4456.6,0.3634]
[1756649793357,3.2078,4456.8,4456.7,0.3634]
[1756649793556,3.7068,4456.8,4456.7,0.3634]
[1756649794461,0.499,4456.8,4456.7,0.2124]
[1756649795154,0.2956,4457.1,4456.7,0.2124]
[1756649795348,0.2956,4457.6,4456.4,0.151]
[1756649795553,0.499,4456.5,4456.4,0.3634]
[1756649796060,0.4936,4457.7,4456.5,0.151]
[1756649797260,0.499,4456.6,4456.5,0.5934]
[1756649797454,0.196,4457.7,4456.6,0.151]
[1756649797654,0.2999,4457.6,4456.6,0.151]
[1756649797961,0.2075,4456.7,4456.6,1.73818213]
[1756649798149,0.5074,4456.7,4456.6,1.73818213]
[1756649799062,1.53108213,4457.8,4456.6,1.73818213]
[1756649799362,0.2075,4456.7,4456.6,1.73818213]
[1756649799559,0.5074,4456.7,4456.6,1.73818213]
[1756649800462,1.38408213,4457.8,4456.6,1.73818213]
[1756649800657,0.22436,4457.7,4456.6,1.73818213]
[1756649801163,0.5074,4456.7,4456.6,1.73818213]
[1756649802959,0.2999,4457.8,4456.7,0.1499]
[1756649803160,0.5074,4457.6,4457.5,1.73708213]
[1756649804864,0.5074,4457.6,4457.5,0.353]
[1756649805862,0.5074,4457.6,4457.1,0.23]
[1756649806066,0.5074,4457.6,4457.1,1.61408213]
[1756649806265,0.5074,4457.5,4457.4,0.2031]
[1756649806462,0.2075,4457.5,4456.9,1.38408213]
[1756649806672,0.5074,4457.0,4456.9,1.81718213]
[1756649806871,0.5074,4457.0,4456.9,1.96708213]
[1756649809374,0.2999,4457.8,4457.0,0.1499]
[1756649809662,0.5074,4457.8,4457.7,1.73708213]
[1756649809868,3.2078,4458.6,4457.8,0.1499]
[1756649810065,0.5074,4458.5,4458.4,0.2031]
[1756649810259,0.5074,4458.5,4458.4,0.353]
[1756649811272,0.2999,4458.4,4457.9,0.3799]
[1756649811472,0.2999,4458.9,4457.9,0.3799]
[1756649811769,1.61408213,4459.0,4457.9,0.3799]
[1756649811971,1.83837214,4459.0,4457.9,0.3799]
[1756649812368,0.2999,4458.9,4457.9,0.3799]
[1756649812765,0.5074,4458.0,4457.9,0.583]
[1756649817174,33.91808213,4459.1,4457.9,0.583]
[1756649817374,0.22429001,4459.0,4458.0,1.38408213]
[1756649817671,0.2999,4458.9,4458.1,0.1499]
[1756649817866,0.2075,4458.2,4458.1,0.1499]
[1756649818066,0.2075,4458.0,4457.9,1.73708213]
[1756649818372,0.5074,4458.0,4457.9,1.73708213]
[1756649819470,0.5074,4458.0,4457.9,0.353]
[1756649819962,0.2999,4458.0,4457.9,0.583]
[1756649820169,0.2999,4458.9,4458.0,0.1499]
[1756649820468,0.52419001,4458.9,4458.0,0.1499]
[1756649820672,0.2999,4458.9,4458.0,0.1499]
[1756649820874,0.2999,4459.1,4458.4,1.58718213]
[1756649821375,3.2078,4459.2,4458.5,0.1499]
[1756649821563,0.5074,4459.1,4459.0,0.2031]
[1756649821769,0.5074,4459.1,4459.0,0.353]
[1756649822175,0.2999,4459.0,4458.9,0.353]
[1756649822475,0.5074,4459.0,4458.9,0.353]
[1756649823674,0.2999,4459.6,4458.9,0.2031]
[1756649823977,0.5074,4459.1,4458.7,3.2078]
[1756649824178,0.5074,4458.8,4458.7,3.7908]
[1756649824772,0.5074,4458.8,4458.7,3.6409]
[1756649824973,0.5074,4458.8,4458.7,3.7908]
[1756649827275,1.38408213,4459.3,4458.7,3.6409]
[1756649827580,0.5074,4459.2,4459.1,0.353]
[1756649827874,3.2078,4459.7,4459.2,0.1391]
[1756649828077,3.4129,4459.7,4459.6,0.2004]
[1756649828480,3.4129,4459.7,4459.6,0.3395]
[1756649828683,3.7023,4459.7,4459.6,0.3395]
[1756649829276,0.4945,4459.7,4459.6,0.3395]
[1756649829475,0.2051,4459.7,4459.6,0.3395]
[1756649829680,0.4945,4459.7,4459.6,0.5695]
[1756649830078,0.2894,4459.7,4459.6,0.5695]
[1756649830276,3.2078,4461.1,4459.7,0.1391]
[1756649830482,0.4945,4460.1,4460.0,3.5473]
[1756649830680,0.4945,4460.1,4460.0,0.5695]
[1756649832882,0.2894,4460.0,4459.8,0.23]
[1756649833080,0.2051,4459.9,4459.8,0.23]
[1756649833683,0.4945,4459.9,4459.8,0.23]
[1756649834382,0.4945,4459.9,4459.8,0.5695]
[1756649834684,0.2894,4460.8,4459.9,0.1391]
[1756649835086,0.2894,4460.8,4460.0,0.1391]
[1756649835774,0.4945,4460.8,4460.7,0.3395]
[1756649836288,0.4945,4460.8,4460.7,0.2004]
[1756649836488,0.4945,4460.8,4460.7,0.229]
[1756649836788,0.4945,4460.8,4460.7,0.5685]
[1756649837483,1.38408213,4461.5,4460.8,0.1391]
[1756649837683,1.67348213,4461.5,4460.8,0.1391]
[1756649838090,0.2051,4460.9,4460.8,0.3395]
[1756649838479,0.4945,4460.9,4460.8,0.3395]
[1756649840291,0.4945,4460.9,4460.8,0.4294]
[1756649840489,0.2894,4460.8,4460.5,0.1391]
[1756649840684,0.4945,4460.3,4460.2,3.5473]
[1756649840884,0.4945,4460.3,4460.2,3.7763]
[1756649841084,0.2894,4460.3,4460.2,3.7763]
[1756649841390,0.2894,4460.8,4460.3,0.1391]
[1756649841592,0.4945,4460.8,4460.7,0.3395]
[1756649841988,0.4945,4460.8,4460.7,0.5685]
[1756649843192,0.4945,4460.8,4460.7,0.2004]
[1756649843492,0.4945,4460.8,4460.7,0.4294]
[1756649843991,0.2051,4460.3,4460.2,3.2078]
[1756649844193,0.4945,4460.3,4460.2,3.7706]
[1756649845596,0.4945,4460.3,4460.2,3.2078]
[1756649845798,0.4945,4460.3,4460.2,3.4368]
[1756649846497,0.4945,4460.3,4460.2,3.6372]
[1756649846696,0.4945,4460.3,4460.2,3.7706]
[1756649847198,0.4945,4460.3,4460.2,3.2078]
[1756649847392,0.4945,4460.3,4460.2,3.4368]
[1756649847693,0.4945,4460.3,4460.2,3.6372]
[1756649847897,0.4945,4460.3,4460.2,3.7706]
[1756649850694,0.4945,4460.3,4460.2,3.6372]
[1756649850897,0.4945,4460.3,4460.2,3.4368]
[1756649854103,0.4945,4460.3,4460.1,3.2078]
[1756649854305,0.4945,4460.3,4460.2,0.229]
[1756649857104,0.4945,4460.3,4460.1,3.2078]
[1756649857303,0.4945,4460.2,4460.1,3.4368]
[1756649857504,0.4945,4460.2,4460.1,3.6372]
[1756649857705,0.4945,4460.2,4460.1,3.7706]
[1756649858208,0.4619,4461.0,4460.9,0.3186]
[1756649858408,1.29024301,4461.0,4460.9,0.3186]
[1756649858609,1.29024301,4461.0,4460.6,0.1285]
[1756649858907,0.1847,4460.7,4460.6,0.3186]
[1756649859108,0.4619,4460.7,4460.6,0.3186]
[1756649860409,0.2772,4460.7,4460.6,0.3186]
[1756649861108,0.4619,4460.7,4460.6,0.3186]
[1756649861305,1.56878213,4460.7,4460.2,0.1285]
[1756649861502,1.56878213,4460.7,4460.3,0.229]
[1756649861697,1.56878213,4460.7,4460.2,0.229]
[1756649861904,0.4619,4460.3,4460.2,0.5476]
[1756649863099,0.4619,4460.3,4460.2,0.229]
[1756649863100,0.1847,4460.3,4460.2,0.229]
[1756649863709,0.4619,4460.3,4460.2,0.229]
[1756649864409,0.4619,4460.3,4460.2,0.5476]
[1756649864904,0.4619,4460.3,4460.2,0.4191]
[1756649865708,0.4619,4459.9,4459.8,0.3186]
[1756649865913,0.4619,4459.9,4459.6,0.1285]
[1756649866111,0.4619,4459.9,4459.7,0.229]
[1756649867113,0.1847,4459.7,4459.6,0.229]
[1756649867314,0.4619,4459.7,4459.6,0.229]
[1756649867706,0.4619,4460.5,4460.4,0.3186]
[1756649868006,0.4619,4460.5,4460.4,0.1901]
[1756649868602,1.38408213,4460.7,4460.1,3.4368]
[1756649868603,0.1847,4460.2,4460.1,3.4368]
[1756649868808,0.4619,4460.2,4460.1,3.4368]
[1756649869017,0.4619,4460.2,4460.1,3.7554]
[1756649869312,0.2772,4460.2,4460.1,3.7554]
[1756649869510,0.2772,4460.2,4460.1,0.5476]
[1756649870208,0.4619,4460.2,4460.1,3.7554]
[1756649872015,0.2772,4460.2,4460.1,3.7554]
[1756649872210,1.38408213,4460.9,4460.1,3.6269]
[1756649872413,0.50139,4460.8,4460.2,0.1285]
[1756649872607,0.2772,4460.8,4460.2,0.1285]
[1756649872804,0.1847,4460.3,4460.2,0.3186]
[1756649873008,0.4619,4460.3,4460.2,0.3186]
[1756649874217,0.4619,4460.3,4460.1,3.4368]
[1756649874218,0.1847,4460.3,4460.1,3.4368]
[1756649874417,0.4619,4460.2,4460.1,3.4368]
[1756649875205,0.4619,4460.2,4460.1,3.2078]
[1756649875413,0.4619,4460.2,4460.1,3.4368]
[1756649875709,0.4619,4460.2,4460.1,3.7554]
[1756649875919,3.2078,4460.9,4460.1,3.6269]
[1756649876216,0.1847,4460.3,4460.2,0.3186]
[1756649876418,0.4619,4460.3,4460.2,0.3186]
[1756649877915,3.485,4460.9,4460.2,0.1901]
[1756649878121,0.2772,4461.3,4460.5,0.1285]
[1756649878418,0.4619,4460.6,4460.5,0.5476]
[1756649880110,0.2772,4460.6,4460.5,0.5476]
[1756649880314,0.4619,4461.3,4461.2,0.1901]
[1756649880511,0.68607,4461.3,4461.2,0.1901]
[1756649880820,0.4619,4461.3,4461.2,0.1901]
[1756649882021,0.4619,4461.3,4461.2,0.3186]
[1756649883820,0.2772,4462.5,4461.9,0.1901]
[1756649884121,0.4619,4462.5,4462.4,0.3186]
[1756649884324,0.4619,4462.5,4462.1,0.1285]
[1756649884519,3.2078,4463.0,4461.6,0.5476]
[1756649884520,0.4619,4461.7,4461.6,0.5476]
[1756649884720,0.2772,4461.7,4461.6,0.5476]
[1756649884927,0.2772,4462.5,4461.7,0.1285]
[1756649885128,0.229,4462.6,4461.8,1.38408213]
[1756649885321,0.1847,4462.0,4461.9,0.3186]
[1756649885518,0.4619,4462.0,4461.9,1.70268213]
[1756649885719,0.2772,4462.9,4462.0,0.1285]
[1756649886024,0.4619,4462.4,4462.3,0.3186]
[1756649886926,0.4619,4462.4,4462.3,0.1901]
[1756649888226,0.4619,4462.4,4462.1,0.229]
[1756649888616,0.1847,4462.4,4462.1,0.3566]
[1756649888822,3.2078,4463.0,4462.2,0.3103]
[1756649889023,0.1998,4462.3,4462.2,0.3103]
[1756649889427,0.4761,4462.3,4462.1,0.229]
[1756649890127,0.2763,4462.0,4461.5,3.2078]
[1756649890328,0.4761,4461.6,4461.5,3.7471]
[1756649891830,1.38408213,4462.8,4461.6,0.1276]
[1756649892030,1.38408213,4462.8,4461.8,0.3103]
[1756649892031,0.1998,4461.9,4461.8,0.3103]
[1756649892229,0.155,4462.8,4461.9,0.1276]
[1756649892430,0.2763,4462.7,4462.0,1.38408213]
[1756649892730,0.2763,4462.7,4462.1,0.1276]
[1756649894230,0.4761,4462.2,4462.1,0.3103]
[1756649896435,0.4761,4463.2,4463.1,0.3103]
[1756649897435,0.2763,4463.5,4463.1,0.3103]
[1756649897631,0.4761,4463.4,4463.3,1.69438213]
[1756649899034,0.4761,4463.4,4463.3,0.3103]
[1756649899437,0.4761,4463.4,4463.3,0.5393]
[1756649901235,0.1998,4464.5,4464.4,0.1827]
[1756649901435,0.4761,4464.5,4464.4,0.3103]
[1756649901631,0.4761,4464.5,4464.4,0.23]
[1756649903032,0.4761,4464.5,4464.4,0.5403]
[1756649903228,0.2763,4464.9,4464.5,0.3103]
[1756649903430,0.1998,4464.8,4464.7,1.69438213]
[1756649903736,0.4761,4464.8,4464.7,1.69438213]
[1756649906640,0.4761,4464.8,4464.7,1.92538213]
[1756649906835,0.4761,4464.8,4464.7,1.69438213]
[1756649907042,0.4761,4464.8,4464.7,0.4137]
[1756649907343,0.1998,4464.2,4464.1,4.77458213]
[1756649907638,0.4761,4464.2,4464.1,5.13188213]
[1756649908934,0.4761,4464.2,4464.1,4.90088213]
[1756649909130,0.4761,4464.2,4464.1,5.13188213]
[1756649909336,0.2763,4465.0,4464.2,0.1263]
[1756649909537,0.1998,4464.5,4464.4,1.56678213]
[1756649909744,0.4761,4464.5,4464.4,1.92408213]
[1756649910339,0.2763,4465.0,4464.5,0.1263]
[1756649910643,0.4761,4464.6,4464.5,0.309]
[1756649910844,0.4761,4464.6,4464.5,0.1827]
[1756649911438,0.4761,4464.6,4464.5,0.23]
[1756649911640,0.2763,4464.5,4464.1,4.59188213]
[1756649911840,0.4761,4464.2,4464.1,4.90088213]
[1756649912041,0.4761,4464.2,4464.1,5.13088213]
[1756649912247,0.2763,4464.2,4464.1,5.13088213]
[1756649912444,0.4761,4464.2,4464.1,5.13088213]
[1756649912741,0.4761,4465.0,4464.9,0.1827]
[1756649912934,0.4761,4465.0,4464.9,0.309]
[1756649913548,0.4761,4466.0,4465.9,0.309]
[1756649913739,0.4761,4466.0,4465.9,0.231]
[1756649914845,0.4761,4466.0,4465.3,1.38408213]
[1756649914846,0.1998,4466.0,4465.3,1.38408213]
[1756649915145,0.1998,4465.7,4465.6,0.541]
[1756649915344,0.4761,4465.7,4465.6,0.541]
[1756649916346,0.4761,4465.7,4465.6,0.309]
[1756649916541,0.4761,4465.7,4465.6,0.541]
[1756649918946,0.484,4465.7,4465.6,0.232]
[1756649919248,0.2006,4465.5,4465.4,0.232]
[1756649919549,0.4848,4465.5,4465.4,0.232]
[1756649920448,0.2842,4465.4,4465.0,0.1272]
[1756649920648,0.4848,4465.0,4464.9,3.2078]
[1756649920845,0.4848,4465.0,4464.9,3.6391]
[1756649921248,0.4848,4465.0,4464.9,3.7663]
[1756649923240,0.2842,4466.2,4465.0,0.1272]
[1756649923446,0.2842,4466.0,4465.3,0.1272]
[1756649923745,0.22394,4466.1,4465.3,0.3582]
[1756649923951,0.4848,4465.4,4465.3,0.5585]
[1756649925550,3.2078,4465.8,4464.4,3.2078]
[1756649925754,0.4848,4464.5,4464.4,3.7663]
[1756649930652,0.4848,4464.5,4464.4,3.5353]
[1756649930852,0.4848,4464.5,4464.4,3.7663]
[1756649932055,0.4848,4464.5,4464.4,5.15038213]
[1756649932351,0.2006,4464.5,4463.9,3.335]
[1756649932553,0.4848,4464.0,4463.9,4.91938213]
[1756649932752,0.4848,4464.0,4463.9,5.15038213]
[1756649939661,0.4848,4464.0,4463.9,3.4081]
[1756649939863,0.2006,4464.0,4463.9,0.231]
[1756649940356,0.4848,4464.0,4463.7,0.1272]
[1756649940556,0.41400122,4465.1,4463.5,1.38408213]
[1756649940557,0.2006,4463.6,4463.5,1.71158213]
[1756649940762,0.2006,4463.6,4463.5,1.94158213]
[1756649940763,0.4848,4463.6,4463.5,1.94158213]
[1756649941858,0.4848,4463.6,4463.5,1.71158213]
[1756649942057,0.4848,4463.6,4463.5,1.94258213]
[1756649942455,0.4848,4463.6,4463.5,1.71158213]
[1756649942657,0.4848,4463.6,4463.5,1.94158213]
[1756649942857,0.4848,4463.6,4463.5,0.5575]
[1756649943554,0.4848,4463.6,4463.5,0.3275]
[1756649943762,0.4848,4463.6,4463.5,0.5575]
[1756649944260,1.38408213,4464.3,4464.2,0.2003]
[1756649944261,0.2842,4464.3,4464.2,0.2003]
[1756649944459,3.2078,4464.7,4464.3,0.1272]
[1756649944654,3.492,4464.7,4464.6,1.71158213]
[1756649944859,3.6926,4464.7,4464.6,1.94258213]
[1756649945157,0.2842,4465.2,4464.6,1.94258213]
[1756649945352,0.2842,4465.8,4465.3,0.1272]
[1756649945557,0.4848,4465.8,4465.7,0.3275]
[1756649947766,0.4848,4465.8,4465.7,0.2003]
[1756649948059,3.2078,4466.0,4465.7,0.3277]
[1756649948266,3.722,4469.2,4464.2,0.17550865]
[1756649948267,3.6762,4466.5,4466.4,0.1935]
[1756649948662,3.6762,4466.5,4466.1,0.1274]
[1756649949061,0.1922,4466.0,4465.9,0.4245]
[1756649949363,0.1922,4465.4,4465.3,0.5519]
[1756649949663,0.4684,4465.4,4465.3,1.93598213]
[1756649950062,0.2762,4465.4,4465.3,1.93598213]
[1756649950366,3.484,4466.0,4465.9,0.1274]
[1756649950666,3.6762,4466.0,4465.9,0.3209]
[1756649951967,3.6762,4466.0,4465.9,0.1935]
[1756649952367,0.2762,4465.9,4465.8,1.38408213]
[1756649952568,0.4684,4465.9,4465.8,1.70498213]
[1756649953268,0.2762,4465.9,4465.8,1.70498213]
[1756649953562,3.2078,4466.0,4465.8,1.70498213]
[1756649953868,3.6762,4466.0,4465.9,0.3209]
[1756649954662,3.6762,4466.0,4465.5,1.38408213]
[1756649954858,0.1922,4465.7,4465.6,0.3209]
[1756649955063,0.4684,4465.7,4465.5,0.23]
[1756649955970,0.1922,4465.2,4465.1,1.61408213]
[1756649956272,0.4684,4465.2,4465.1,1.93498213]